bitfinex-derivatives/quotes_BTCF0:USTF0_20250711
["timestamp","ask_amount","ask_price","bid_price","bid_amount"]
[1752201734864,1.4042152,116600.0,116590.0,0.7857513]
[1752201735158,0.02551,116600.0,116590.0,1.4138113]
[1752201735458,0.1963555,116600.0,116590.0,1.4138113]
[1752201735961,0.02487,116600.0,116590.0,1.4138113]
[1752201737364,0.1963555,116600.0,116590.0,1.4138113]
[1752201739059,0.1963554,116600.0,116590.0,1.4138113]
[1752201739958,0.02487,116600.0,116590.0,1.4138113]
[1752201740658,0.1963554,116600.0,116590.0,0.84131711]
[1752201740860,0.1963554,116600.0,116590.0,1.43667711]
[1752201741166,0.02487,116600.0,116590.0,1.4137713]
[1752201741366,0.02487,116600.0,116590.0,1.43663711]
[1752201741955,0.02487,116600.0,116590.0,1.4137713]
[1752201742265,0.02487,116600.0,116590.0,0.8184513]
[1752201742466,0.02487,116600.0,116590.0,1.4137713]
[1752201742768,0.02487,116600.0,116590.0,0.8184513]
[1752201743468,0.02487,116600.0,116590.0,1.4137713]
[1752201745668,0.04137,116600.0,116590.0,0.5998002]
[1752201745873,0.04137,116600.0,116590.0,1.4137713]
[1752201746074,0.04137,116600.0,116590.0,0.8184513]
[1752201747177,0.04137,116600.0,116590.0,1.4137313]
[1752201747373,0.04137,116600.0,116590.0,0.84131711]
[1752201747680,0.04137,116600.0,116590.0,1.4137313]
[1752201748080,0.04137,116600.0,116590.0,0.8184513]
[1752201748577,0.04137,116600.0,116590.0,1.4137313]
[1752201748777,0.04137,116600.0,116590.0,0.8184513]
[1752201748977,0.04137,116600.0,116590.0,1.4137313]
[1752201750579,0.02487,116600.0,116590.0,1.4137313]
[1752201752783,0.02667,116610.0,116600.0,0.1714854]
[1752201752983,0.02667,116610.0,116600.0,0.8139365]
[1752201753180,0.002,116610.0,116600.0,0.8139365]
[1752201753480,0.10453357,116640.0,116630.0,0.1714413]
[1752201753481,0.04117,116640.0,116630.0,0.1714413]
[1752201753784,0.4312477,116640.0,116630.0,0.9112744]
[1752201753978,0.4318877,116640.0,116630.0,0.9112744]
[1752201754179,0.4966877,116640.0,116630.0,0.9112744]
[1752201756081,0.4966877,116640.0,116630.0,0.8963744]
[1752201757179,0.7153388,116640.0,116630.0,0.7216]
[1752201757384,0.316528,116630.0,116620.0,0.3608]
[1752201757573,0.6216491,116630.0,116620.0,0.3608]
[1752201757770,1.9834571,116630.0,116620.0,0.3608]
[1752201759877,1.9840971,116630.0,116620.0,0.3608]
[1752201764692,1.8126091,116630.0,116620.0,0.3608]
[1752201765386,1.9840971,116630.0,116620.0,0.3608]
[1752201765792,1.8126091,116630.0,116620.0,0.3608]
[1752201771907,1.87428357,116630.0,116620.0,0.3608]
[1752201772301,1.8126091,116630.0,116620.0,0.3608]
[1752201772500,1.87428357,116630.0,116620.0,0.3608]
[1752201772905,1.8126091,116630.0,116620.0,0.3608]
[1752201775103,1.85882957,116630.0,116620.0,0.3608]
[1752201777607,2.0312602,116630.0,116620.0,0.3608]
[1752201777911,1.87428357,116630.0,116620.0,0.3608]
[1752201778109,1.8126091,116630.0,116620.0,0.3608]
[1752201779512,0.171456,116620.0,116610.0,0.3913]
[1752201779705,0.50894738,116620.0,116610.0,0.3913]
[1752201780109,0.50958738,116620.0,116610.0,0.3913]
[1752201781609,0.53988738,116620.0,116610.0,0.3913]
[1752201782510,0.50958738,116620.0,116610.0,0.3913]
[1752201782907,0.50958738,116620.0,116610.0,0.0305]
[1752201783108,0.50958738,116620.0,116610.0,0.3913]
[1752201783610,0.29093628,116620.0,116610.0,0.4235]
[1752201783810,0.50894738,116620.0,116610.0,0.4235]
[1752201784015,0.50958738,116620.0,116610.0,0.4235]
[1752201785612,0.47718738,116620.0,116610.0,0.4235]
[1752201786022,0.4309671,116620.0,116610.0,0.4235]
[1752201786412,0.47718738,116620.0,116610.0,0.4235]
[1752201787420,0.4309671,116620.0,116610.0,0.4235]
[1752201787622,0.47726024,116620.0,116610.0,0.4235]
[1752201788024,0.69591134,116620.0,116610.0,0.4235]
[1752201788220,0.1714707,116610.0,116600.0,0.36251519]
[1752201788524,1.88524589,116610.0,116600.0,0.39421519]
[1752201788824,1.91708589,116610.0,116600.0,0.39421519]
[1752201791221,1.94868589,116610.0,116600.0,0.36251519]
[1752201791422,1.94868589,116610.0,116600.0,0.00171519]
[1752201791622,1.94868417,116610.0,116600.0,0.00171519]
[1752201791822,1.94868511,116610.0,116600.0,0.00171519]
[1752201793423,1.95640935,116610.0,116600.0,0.00171519]
[1752201794434,1.95640935,116610.0,116600.0,9e-08]
[1752201795921,1.73775825,116610.0,116600.0,9e-08]
[1752201796126,1.95640935,116610.0,116600.0,9e-08]
[1752201797744,1.91011714,116610.0,116600.0,9e-08]
[1752201804036,2.27091714,116610.0,116600.0,9e-08]
[1752201804350,2.33259161,116610.0,116600.0,9e-08]
[1752201804734,1.97179161,116610.0,116600.0,9e-08]
[1752201804939,1.91011714,116610.0,116600.0,9e-08]
[1752201805139,1.97179161,116610.0,116600.0,9e-08]
[1752201805338,2.33259161,116610.0,116600.0,9e-08]
[1752201805539,1.97179161,116610.0,116600.0,9e-08]
[1752201805738,2.33259161,116610.0,116600.0,9e-08]
[1752201806739,1.97179161,116610.0,116600.0,9e-08]
[1752201807227,2.33259161,116610.0,116600.0,9e-08]
[1752201807640,2.31715141,116610.0,116600.0,9e-08]
[1752201807840,1.95635141,116610.0,116600.0,9e-08]
[1752201808938,2.31715141,116610.0,116600.0,9e-08]
[1752201809540,1.91011714,116610.0,116600.0,9e-08]
[1752201809739,2.31715949,116610.0,116600.0,9e-08]
[1752201810139,1.95635949,116610.0,116600.0,9e-08]
[1752201810838,2.17502436,116610.0,116600.0,9e-08]
[1752201811034,2.53582436,116610.0,116600.0,9e-08]
[1752201811742,2.12878201,116610.0,116600.0,9e-08]
[1752201812140,2.17502887,116610.0,116600.0,9e-08]
[1752201813134,2.12878201,116610.0,116600.0,9e-08]
[1752201813732,2.48958201,116610.0,116600.0,9e-08]
[1752201813938,2.12878201,116610.0,116600.0,9e-08]
[1752201814143,2.48958201,116610.0,116600.0,9e-08]
[1752201814331,2.12878201,116610.0,116600.0,9e-08]
[1752201816146,2.17504527,116610.0,116600.0,9e-08]
[1752201816345,2.12878201,116610.0,116600.0,9e-08]
[1752201817037,2.17505551,116610.0,116600.0,9e-08]
[1752201817335,2.12878201,116610.0,116600.0,9e-08]
[1752201817544,2.17506872,116610.0,116600.0,9e-08]
[1752201817745,2.12878201,116610.0,116600.0,9e-08]
[1752201818051,0.72016632,116610.0,116600.0,9e-08]
[1752201818249,0.27400517,116610.0,116600.0,0.81274108]
[1752201818547,0.47663968,116610.0,116600.0,0.81274108]
[1752201818739,0.43098639,116610.0,116600.0,0.81274108]
[1752201818940,0.1967907,116610.0,116600.0,0.59408539]
[1752201819139,0.1961507,116610.0,116600.0,0.59408539]
[1752201819643,0.09677775,116630.0,116620.0,0.2143174]
[1752201819644,0.02454,116630.0,116620.0,0.2143174]
[1752201819845,0.1959812,116630.0,116620.0,0.9359174]
[1752201820047,0.1959812,116630.0,116620.0,1.2477174]
[1752201820243,0.1959812,116630.0,116620.0,0.9977174]
[1752201820949,0.1714412,116630.0,116620.0,0.9977174]
[1752201821249,0.1714412,116630.0,116620.0,1.5935174]
[1752201822740,0.1959812,116630.0,116620.0,0.9977174]
[1752201822948,0.1959812,116630.0,116620.0,1.5932774]
[1752201823344,0.1959812,116630.0,116620.0,1.00527036]
[1752201823538,0.43098928,116630.0,116620.0,1.55788886]
[1752201823839,0.43162928,116630.0,116620.0,1.55788886]
[1752201824546,0.2131112,116630.0,116620.0,1.55788886]
[1752201824748,0.43098928,116630.0,116620.0,1.55788886]
[1752201824948,0.43162928,116630.0,116620.0,1.55788886]
[1752201826046,0.43162928,116630.0,116620.0,0.7834]
[1752201826949,0.43162928,116630.0,116620.0,0.9548559]
[1752201829953,0.39059928,116630.0,116620.0,0.9548559]
[1752201830152,0.43162928,116630.0,116620.0,0.9548559]
[1752201833551,0.43028928,116630.0,116620.0,0.9548559]
[1752201834356,0.43028928,116630.0,116620.0,0.7834]
[1752201834558,0.46238928,116630.0,116620.0,0.7834]
[1752201835558,0.46238928,116630.0,116620.0,0.7521]
[1752201835756,0.46238928,116630.0,116620.0,0.9235558]
[1752201838361,0.46238928,116630.0,116620.0,0.7521]
[1752201839955,0.46238928,116630.0,116620.0,0.9235558]
[1752201840363,0.46238928,116630.0,116620.0,0.7521]
[1752201840768,0.46238928,116630.0,116620.0,0.9235558]
[1752201841164,0.46238928,116630.0,116620.0,0.7521]
[1752201843164,0.46238928,116630.0,116620.0,0.9235558]
[1752201843367,0.2438712,116630.0,116620.0,0.9235558]
[1752201843664,0.46174928,116630.0,116620.0,0.9235558]
[1752201844162,0.46238928,116630.0,116620.0,0.9235558]
[1752201844355,0.46238928,116630.0,116620.0,0.9548558]
[1752201844562,0.46238928,116630.0,116620.0,0.7834]
[1752201845369,0.46238928,116630.0,116620.0,0.7521]
[1752201845863,0.49398928,116630.0,116620.0,0.7521]
[1752201846162,0.49398928,116630.0,116620.0,0.7216]
[1752201846356,0.54028257,116630.0,116620.0,0.7216]
[1752201846864,0.50164281,116630.0,116620.0,0.7216]
[1752201847766,0.54786639,116630.0,116620.0,0.7216]
[1752201850465,0.54021286,116630.0,116620.0,0.7216]
[1752201852370,0.54021286,116630.0,116620.0,0.7536]
[1752201854476,1.02516928,116630.0,116620.0,0.7536]
[1752201854662,1.02516928,116630.0,116620.0,0.784]
[1752201855066,1.07139286,116630.0,116620.0,0.784]
[1752201855267,1.10149286,116630.0,116620.0,0.784]
[1752201858364,1.10149286,116630.0,116620.0,0.784]
[1752201858761,1.10149286,116630.0,116620.0,0.7536]
[1752201860077,1.10149286,116630.0,116620.0,0.032]
[1752201860276,1.10149286,116630.0,116620.0,0.3928]
[1752201860868,1.13469286,116630.0,116620.0,0.3928]
[1752201862175,1.13469286,116630.0,116620.0,0.032]
[1752201862573,1.13469286,116630.0,116620.0,0.3928]
[1752201862774,1.13469286,116630.0,116620.0,0.032]
[1752201863373,1.13469286,116630.0,116620.0,0.3928]
[1752201864778,0.53981286,116630.0,116620.0,0.3928]
[1752201864978,1.13461286,116630.0,116620.0,0.3928]
[1752201865184,1.13461286,116630.0,116620.0,0.032]
[1752201866078,1.13461286,116630.0,116620.0,0.3928]
[1752201866580,1.13461286,116630.0,116620.0,0.032]
[1752201866780,1.13461286,116630.0,116620.0,0.3928]
[1752201868381,1.13461286,116630.0,116620.0,0.032]
[1752201870282,0.47651286,116630.0,116620.0,0.5642558]
[1752201870481,1.07127286,116630.0,116620.0,0.5958558]
[1752201872183,0.47651286,116630.0,116620.0,0.5958558]
[1752201872484,1.07127286,116630.0,116620.0,0.5958558]
[1752201872783,1.07123286,116630.0,116620.0,0.5958558]
[1752201873178,0.85271478,116630.0,116620.0,0.5958558]
[1752201873378,0.47651286,116630.0,116620.0,0.5958558]
[1752201873684,1.07123286,116630.0,116620.0,0.5958558]
[1752201873887,0.47651286,116630.0,116620.0,0.5958558]
[1752201874080,1.02500928,116630.0,116620.0,0.5958558]
[1752201874279,1.02500928,116630.0,116620.0,0.4244]
[1752201874886,0.43028928,116630.0,116620.0,0.4244]
[1752201875087,1.02500928,116630.0,116620.0,0.4244]
[1752201875281,1.02500928,116630.0,116620.0,0.5958559]
[1752201875787,1.07123286,116630.0,116620.0,0.5958559]
[1752201875987,1.02500928,116630.0,116620.0,0.5958559]
[1752201877080,0.85267478,116630.0,116620.0,0.5958559]
[1752201877283,0.8064512,116630.0,116620.0,0.5958559]
[1752201877577,0.2117712,116630.0,116620.0,0.5958559]
[1752201877782,0.1949612,116630.0,116620.0,0.5958559]
[1752201878185,0.41347928,116630.0,116620.0,0.5958559]
[1752201878985,0.42979928,116630.0,116620.0,0.5958559]
[1752201879489,0.43043928,116630.0,116620.0,0.5832559]
[1752201881682,0.43043928,116630.0,116620.0,1.1778959]
[1752201881987,0.2119212,116630.0,116620.0,1.1778959]
[1752201882194,0.42979928,116630.0,116620.0,1.1778959]
[1752201883197,0.1949612,116630.0,116620.0,1.1778959]
[1752201883584,0.42979928,116630.0,116620.0,1.1778959]
[1752201883788,0.43043928,116630.0,116620.0,1.1778959]
[1752201887789,0.46343928,116630.0,116620.0,1.15622832]
[1752201887988,0.49623928,116630.0,116620.0,0.5516558]
[1752201888788,0.49623928,116630.0,116620.0,0.3802]
[1752201888994,0.49623928,116630.0,116620.0,0.3608]
[1752201889295,0.54246286,116630.0,116620.0,0.3608]
[1752201892094,0.2094958,116620.0,116610.0,0.37870406]
[1752201892296,1.89765196,116620.0,116610.0,0.3608]
[1752201892498,0.2095105,116610.0,116600.0,0.36080009]
[1752201892697,0.70874666,116610.0,116600.0,0.3837991]
[1752201892898,0.70938666,116610.0,116600.0,0.0229991]
[1752201893197,0.70938666,116610.0,116600.0,9e-08]
[1752201893198,0.29575408,116610.0,116600.0,9e-08]
[1752201893399,0.73215024,116610.0,116600.0,9e-08]
[1752201893600,0.68656666,116610.0,116600.0,0.00100009]
[1752201893800,0.75561024,116610.0,116600.0,0.00100009]
[1752201894387,0.75561024,116610.0,116600.0,0.00300009]
[1752201894593,0.75561024,116610.0,116600.0,0.00200009]
[1752201895197,0.75561024,116610.0,116600.0,9e-08]
[1752201895198,0.73279024,116610.0,116600.0,9e-08]
[1752201895498,0.01522,116600.0,116570.0,0.60022158]
[1752201895702,0.62377076,116580.0,116570.0,0.70621133]
[1752201895903,0.42871268,116580.0,116570.0,0.73931133]
[1752201896200,0.42871268,116580.0,116570.0,0.66410051]
[1752201896703,0.42871268,116580.0,116570.0,0.66510051]
[1752201897095,0.42871268,116580.0,116570.0,0.66410051]
[1752201897302,0.42871268,116580.0,116570.0,0.66810051]
[1752201897602,0.2101946,116580.0,116570.0,0.6910159]
[1752201897904,0.2095546,116580.0,116570.0,0.6910159]
[1752201898101,0.64659076,116580.0,116570.0,0.0504104]
[1752201898397,0.2718946,116580.0,116570.0,0.02749501]
[1752201898602,0.2095546,116580.0,116570.0,0.60681309]
[1752201898798,0.2095546,116580.0,116570.0,0.67121309]
[1752201899004,0.2095546,116580.0,116570.0,0.67119389]
[1752201899204,0.2095546,116580.0,116570.0,0.45267581]
[1752201899404,0.45897268,116580.0,116570.0,0.39936]
[1752201899605,0.49047268,116580.0,116570.0,0.41846202]
[1752201900005,1.67943268,116580.0,116570.0,0.41846202]
[1752201900194,1.4615546,116580.0,116570.0,0.38626202]
[1752201900399,1.68007268,116580.0,116570.0,0.38626202]
[1752201900610,2.04087268,116580.0,116570.0,0.02546202]
[1752201900802,0.1715293,116570.0,116560.0,0.00171578]
[1752201901105,0.85098738,116570.0,116560.0,8e-08]
[1752201901298,0.85162738,116570.0,116560.0,8e-08]
[1752201902907,0.6331093,116570.0,116560.0,0.00100008]
[1752201903206,2.04062738,116570.0,116560.0,8e-08]
[1752201903405,2.01780738,116570.0,116560.0,8e-08]
[1752201903800,1.7992893,116570.0,116560.0,8e-08]
[1752201903995,1.65712738,116570.0,116560.0,8e-08]
[1752201904308,1.65712738,116570.0,116560.0,0.36080008]
[1752201904498,0.7819493,116570.0,116560.0,0.75086216]
[1752201904700,0.8047693,116570.0,116560.0,0.81426216]
[1752201905199,0.8047693,116570.0,116560.0,0.59574408]
[1752201905506,0.8047693,116570.0,116560.0,0.39300008]
[1752201905809,1.06596738,116570.0,116560.0,8e-08]
[1752201906906,1.42676738,116570.0,116560.0,8e-08]
[1752201909411,1.42776738,116570.0,116560.0,8e-08]
[1752201910211,1.42780738,116570.0,116560.0,8e-08]
[1752201911109,0.83320738,116570.0,116560.0,8e-08]
[1752201911413,1.42780738,116570.0,116560.0,8e-08]
[1752201912115,0.83320738,116570.0,116560.0,8e-08]
[1752201912314,1.42780738,116570.0,116560.0,8e-08]
[1752201914902,0.83320738,116570.0,116560.0,8e-08]
[1752201915106,1.06700738,116570.0,116560.0,8e-08]
[1752201916715,1.42780738,116570.0,116560.0,8e-08]
[1752201925223,1.42780738,116570.0,116530.0,0.38371539]
[1752201925224,0.0428867,116560.0,116530.0,0.38371539]
[1752201925424,0.40518138,116540.0,116530.0,0.40661948]
[1752201925629,0.40518138,116540.0,116530.0,0.44650409]
[1752201925830,0.42886138,116540.0,116530.0,0.44650409]
[1752201926032,0.42886138,116540.0,116530.0,0.08570409]
[1752201926231,0.42950138,116540.0,116530.0,0.08570409]
[1752201926534,0.42950138,116540.0,116530.0,0.08870409]
[1752201927034,0.42950138,116540.0,116530.0,0.45250409]
[1752201927630,0.42950138,116540.0,116530.0,0.09170409]
[1752201927824,0.42950138,116540.0,116530.0,0.45250409]
[1752201927825,0.2109833,116540.0,116530.0,0.45250409]
[1752201928136,0.42886138,116540.0,116530.0,0.45250409]
[1752201928338,0.42950138,116540.0,116530.0,0.45250409]
[1752201928827,0.42950138,116540.0,116530.0,0.44950409]
[1752201929022,0.42950138,116540.0,116530.0,0.45050409]
[1752201930236,0.42950138,116540.0,116530.0,0.45052678]
[1752201930431,0.42950138,116540.0,116530.0,0.08972678]
[1752201930626,0.42950138,116540.0,116530.0,0.45052678]
[1752201931035,0.42950138,116540.0,116530.0,0.62211478]
[1752201931233,0.2109833,116540.0,116530.0,0.84063286]
[1752201931436,0.2103433,116540.0,116530.0,0.84063286]
[1752201932039,0.1952533,116540.0,116530.0,0.84063286]
[1752201932537,0.1952533,116540.0,116530.0,0.62211478]
[1752201932737,0.1952533,116540.0,116530.0,0.86353549]
[1752201932934,0.1715733,116540.0,116530.0,0.64501741]
[1752201933134,0.1952533,116540.0,116530.0,0.86353549]
[1752201933338,0.1952533,116540.0,116530.0,0.64501741]
[1752201933533,0.1952533,116540.0,116530.0,1.23953741]
[1752201934238,0.1952533,116540.0,116530.0,0.64501741]
[1752201934441,0.1952533,116540.0,116530.0,1.23953741]
[1752201935840,0.1952533,116540.0,116530.0,1.45805549]
[1752201936944,0.2381417,116550.0,116540.0,0.1715733]
[1752201937236,0.1952499,116550.0,116540.0,0.86013067]
[1752201937639,0.1952499,116550.0,116540.0,0.86776133]
[1752201938039,0.2810126,116560.0,116550.0,0.1715586]
[1752201938241,0.1715569,116560.0,116550.0,1.42269101]
[1752201938441,0.1715569,116560.0,116550.0,1.63381863]
[1752201938944,0.1952369,116560.0,116550.0,1.67963338]
[1752201939344,0.1952369,116560.0,116550.0,1.63381863]
[1752201940140,0.1952369,116560.0,116550.0,1.63377863]
[1752201940345,0.2103269,116560.0,116550.0,0.86774663]
[1752201940645,0.2103269,116560.0,116550.0,1.24466855]
[1752201940846,0.2103269,116560.0,116550.0,0.65022855]
[1752201941145,0.2103269,116560.0,116550.0,1.24466855]
[1752201941446,0.2103269,116560.0,116550.0,1.24666855]
[1752201942040,0.2103269,116560.0,116550.0,0.65222855]
[1752201942442,0.2103269,116560.0,116550.0,1.24666855]
[1752201944243,0.2103269,116560.0,116550.0,1.26953224]
[1752201945040,0.2103269,116560.0,116550.0,1.24666855]
[1752201945041,0.1952369,116560.0,116550.0,1.24666855]
[1752201945240,0.1952369,116560.0,116550.0,1.26952772]
[1752201945545,0.1952369,116560.0,116550.0,1.4880458]
[1752201945846,0.1952369,116560.0,116550.0,1.48804565]
[1752201946045,0.1952369,116560.0,116550.0,1.46518663]
[1752201946246,0.1952369,116560.0,116550.0,1.45750274]
[1752201946646,0.1952369,116560.0,116550.0,0.86306274]
[1752201946947,0.1952369,116560.0,116550.0,1.45738274]
[1752201949639,0.1952369,116560.0,116550.0,1.45734274]
[1752201950035,0.1952369,116560.0,116550.0,0.86306274]
[1752201950245,0.1952369,116560.0,116550.0,1.45734274]
[1752201950947,0.1952369,116560.0,116550.0,1.45731604]
[1752201956549,0.02552,116570.0,116560.0,0.1715438]
[1752201956742,0.002,116570.0,116560.0,0.8220593]
[1752201957048,0.002,116570.0,116560.0,0.8542593]
[1752201957248,0.002,116570.0,116560.0,0.86222053]
[1752201957845,0.02552,116570.0,116560.0,0.88506559]
[1752201958148,0.02552,116570.0,116560.0,0.86222053]
[1752201958748,0.1970491,116570.0,116560.0,0.86222053]
[1752201959145,0.1970491,116570.0,116560.0,0.88806559]
[1752201959848,0.1970491,116570.0,116560.0,0.89106559]
[1752201960150,0.2124191,116570.0,116560.0,0.64970245]
[1752201960346,0.2124191,116570.0,116560.0,1.26670751]
[1752201961236,0.2124191,116570.0,116560.0,0.67254751]
[1752201961639,0.2434191,116570.0,116560.0,1.26666751]
[1752201961843,0.2124191,116570.0,116560.0,0.67254751]
[1752201962249,0.2124191,116570.0,116560.0,1.26666751]
[1752201962448,0.2124191,116570.0,116560.0,1.22090815]
[1752201962649,0.2124191,116570.0,116560.0,1.26674616]
[1752201963745,0.2124191,116570.0,116560.0,1.48526424]
[1752201963945,0.1970491,116570.0,116560.0,1.48522424]
[1752201964245,0.02552,116570.0,116560.0,1.49289367]
[1752201964953,0.1970491,116570.0,116560.0,1.51577989]
[1752201965350,0.002,116570.0,116560.0,1.51577989]
[1752201965551,0.002,116570.0,116560.0,1.49289367]
[1752201966750,0.1735291,116570.0,116560.0,1.49289367]
[1752201967149,0.1970491,116570.0,116560.0,1.49289367]
[1752201968049,0.002,116570.0,116560.0,1.49289367]
[1752201968757,0.02552,116570.0,116560.0,1.49289367]
[1752201970862,0.002,116570.0,116560.0,1.49289367]
[1752201971065,0.02552,116570.0,116560.0,1.49289367]
[1752201971258,0.1970491,116570.0,116560.0,1.49277367]
[1752201971458,0.2443191,116570.0,116560.0,1.49277367]
[1752201972065,0.05742,116570.0,116560.0,1.49277367]
[1752201972261,0.05742,116570.0,116560.0,0.89881367]
[1752201972461,0.2443191,116570.0,116560.0,0.89881367]
[1752201972664,0.2443191,116570.0,116560.0,1.49273367]
[1752201972959,0.2443191,116570.0,116560.0,0.89881367]
[1752201973459,0.46283718,116570.0,116560.0,0.64809559]
[1752201973664,0.49573718,116570.0,116560.0,1.23461936]
[1752201973856,0.49637718,116570.0,116560.0,1.23461936]
[1752201974056,0.49637718,116570.0,116560.0,1.20407619]
[1752201975663,0.49637718,116570.0,116560.0,1.20403619]
[1752201975861,0.49637718,116570.0,116560.0,0.43065116]
[1752201976057,0.49637718,116570.0,116560.0,0.38976427]
[1752201976258,0.49637718,116570.0,116560.0,0.02896427]
[1752201976455,0.1869139,116560.0,116550.0,0.3608]
[1752201976662,0.2104486,116550.0,116540.0,0.3608]
[1752201976860,0.1869433,116540.0,116530.0,0.43249614]
[1752201977061,0.46138138,116540.0,116530.0,0.40195297]
[1752201977359,0.46138138,116540.0,116530.0,0.97758377]
[1752201977559,0.46202138,116540.0,116530.0,0.532388]
[1752201977968,0.46202138,116540.0,116530.0,0.3608]
[1752201978163,0.171588,116530.0,116520.0,0.68937315]
[1752201978362,0.46139608,116530.0,116520.0,1.19749655]
[1752201978562,0.46139608,116530.0,116520.0,0.60357655]
[1752201978563,0.46203608,116530.0,116520.0,0.60357655]
[1752201978754,0.46203608,116530.0,116520.0,1.19749655]
[1752201979375,0.46203608,116530.0,116520.0,0.60357655]
[1752201979559,0.46203608,116530.0,116520.0,1.19745655]
[1752201979755,0.243518,116530.0,116520.0,1.41897463]
[1752201979960,0.243518,116530.0,116520.0,1.48287463]
[1752201979961,0.210478,116530.0,116520.0,1.48287463]
[1752201980366,0.210478,116530.0,116520.0,1.49084821]
[1752201981070,0.210478,116530.0,116520.0,1.49284821]
[1752201981673,0.03889,116530.0,116520.0,1.49284821]
[1752201981971,0.1947833,116540.0,116530.0,0.171588]
[1752201982269,0.2106133,116540.0,116530.0,0.81310608]
[1752201982464,0.02321,116540.0,116530.0,0.81310608]
[1752201982771,0.1947833,116540.0,116530.0,0.81310608]
[1752201983173,0.02321,116540.0,116530.0,0.81310608]
[1752201983877,0.1947833,116540.0,116530.0,0.81510608]
[1752201985274,0.42913138,116540.0,116530.0,1.190468]
[1752201985674,0.42913138,116540.0,116530.0,0.596588]
[1752201985974,0.2106133,116540.0,116530.0,1.190468]
[1752201986473,0.2106133,116540.0,116530.0,1.192468]
[1752201987771,0.2106133,116540.0,116530.0,0.62149177]
[1752201987971,0.2106133,116540.0,116530.0,1.192468]
[1752201988172,0.2106133,116540.0,116530.0,0.62149177]
[1752201988368,0.42913138,116540.0,116530.0,0.3648]
[1752201988563,0.49213138,116540.0,116530.0,0.004]
[1752201989067,1.08640327,116570.0,116560.0,0.1715438]
[1752201989068,0.04822744,116570.0,116560.0,0.1715438]
[1752201989372,0.05083,116570.0,116560.0,1.3835438]
[1752201989570,0.05083,116570.0,116560.0,1.96286188]
[1752201989771,0.01783,116570.0,116560.0,2.02616188]
[1752201990274,0.1913591,116570.0,116560.0,2.02616188]
[1752201990875,0.1913591,116570.0,116560.0,1.8076438]
[1752201991276,0.2145691,116570.0,116560.0,1.8076438]
[1752201991479,0.2175691,116570.0,116560.0,1.8076438]
[1752201992773,0.2175691,116570.0,116560.0,0.5729738]
[1752201993078,0.2125691,116570.0,116560.0,1.1678538]
[1752201993283,0.2125691,116570.0,116560.0,1.2302538]
[1752201994082,0.2125691,116570.0,116560.0,0.6363738]
[1752201994270,0.2431691,116570.0,116560.0,0.43393]
[1752201994670,0.6166179,116570.0,116560.0,0.04163]
[1752201994870,0.9780579,116570.0,116560.0,0.001]
[1752201995575,0.6172579,116570.0,116560.0,0.001]
[1752201995774,0.6172579,116570.0,116560.0,0.01735]
[1752201996177,0.6182579,116570.0,116560.0,0.01735]
[1752201996680,0.6202579,116570.0,116560.0,0.01735]
[1752201996873,0.6202579,116570.0,116560.0,0.04016419]
[1752201997178,0.6172579,116570.0,116560.0,0.01735]
[1752201997379,0.6182579,116570.0,116560.0,0.01735]
[1752201998176,0.6182579,116570.0,116560.0,0.01635]
[1752201998979,0.6202579,116570.0,116560.0,0.01635]
[1752201999479,0.6202579,116570.0,116560.0,0.03917883]
[1752202000382,0.6202579,116570.0,116560.0,0.01635]
[1752202000774,0.6202579,116570.0,116560.0,0.03919129]
[1752202001073,0.6222579,116570.0,116560.0,0.01635]
[1752202002079,0.2488091,116570.0,116560.0,0.61386278]
[1752202002276,0.2481691,116570.0,116560.0,0.65581624]
[1752202002479,0.2175691,116570.0,116560.0,0.99746504]
[1752202003279,0.2155691,116570.0,116560.0,0.99746504]
[1752202003483,0.2155691,116570.0,116560.0,0.65581624]
[1752202004181,0.2135691,116570.0,116560.0,0.65581624]
[1752202004883,0.2125691,116570.0,116560.0,0.65681624]
[1752202006384,0.2125691,116570.0,116560.0,0.67966329]
[1752202009886,0.2125691,116570.0,116560.0,0.70253482]
[1752202010885,0.2125691,116570.0,116560.0,0.67966329]
[1752202011086,0.2125691,116570.0,116560.0,0.70253482]
[1752202012781,0.2125691,116570.0,116560.0,0.92119637]
[1752202013588,0.002,116570.0,116560.0,0.92119637]
[1752202013786,0.1735287,116570.0,116560.0,0.92119637]
[1752202013989,0.2121987,116570.0,116560.0,0.92119637]
[1752202014289,0.002,116570.0,116560.0,0.92119637]
[1752202014690,0.1735287,116570.0,116560.0,0.92119637]
[1752202014886,0.002,116570.0,116560.0,0.92119637]
[1752202016383,0.02523,116570.0,116560.0,0.92119637]
[1752202016585,0.002,116570.0,116560.0,1.51467637]
[1752202016785,0.002,116570.0,116560.0,1.52473306]
[1752202017491,0.002,116570.0,116560.0,1.49182932]
[1752202017875,0.002,116570.0,116560.0,1.52237249]
[1752202018083,0.002,116570.0,116560.0,1.30371094]
[1752202018290,0.002,116570.0,116560.0,1.49950096]
[1752202019088,0.002,116570.0,116560.0,1.509557]
[1752202019286,0.002,116570.0,116560.0,1.55537175]
[1752202019589,0.002,116570.0,116560.0,1.30616703]
[1752202019794,0.002,116570.0,116560.0,1.47901383]
[1752202021289,0.1947297,116590.0,116580.0,0.171514]
[1752202021492,0.1869383,116600.0,116590.0,0.1879293]
[1752202021690,0.2101683,116600.0,116590.0,0.85334085]
[1752202021889,0.2101683,116600.0,116590.0,0.86140342]
[1752202022094,0.2101683,116600.0,116590.0,0.64274187]
[1752202022297,0.42882985,116600.0,116590.0,0.6346793]
[1752202022495,0.46052985,116600.0,116590.0,0.96559]
[1752202022692,0.49082985,116600.0,116590.0,0.96559]
[1752202022989,0.49182985,116600.0,116590.0,1.03538402]
[1752202023384,0.49182985,116600.0,116590.0,0.44202402]
[1752202023589,0.85262985,116600.0,116590.0,0.06979402]
[1752202023793,0.1869393,116590.0,116580.0,0.37868341]
[1752202024096,0.210184,116580.0,116570.0,0.97055]
[1752202024290,0.49224555,116580.0,116570.0,0.97055]
[1752202024489,0.49288555,116580.0,116570.0,0.97055]
[1752202025296,0.49288555,116580.0,116570.0,0.37723]
[1752202025490,0.49288555,116580.0,116570.0,0.97355]
[1752202025691,0.49288555,116580.0,116570.0,0.97555]
[1752202026194,0.49288555,116580.0,116570.0,1.1470787]
[1752202026397,0.274224,116580.0,116570.0,1.1470787]
[1752202026591,0.49224555,116580.0,116570.0,1.1470787]
[1752202027394,0.49224555,116580.0,116570.0,1.21427123]
[1752202028097,0.49224555,116580.0,116570.0,0.85347123]
[1752202028397,0.49288555,116580.0,116570.0,1.21427123]
[1752202028695,0.49288555,116580.0,116570.0,1.23822123]
[1752202028895,0.49288555,116580.0,116570.0,0.44942253]
[1752202029091,0.49288555,116580.0,116570.0,1.21427123]
[1752202029398,0.49288555,116580.0,116570.0,1.23822123]